bitfinex-derivatives/quotes_SOLF0:USTF0_20250624
["timestamp","ask_amount","ask_price","bid_price","bid_amount"]
[1750769543768,6.9229,144.36,144.33,10.37641924]
[1750769543968,3.45251924,144.42,144.33,3.45251924]
[1750769544268,7.46052152,144.41,144.33,3.45251924]
[1750769544568,6.9229,144.36,144.33,10.37631924]
[1750769546272,6.9229,144.36,144.34,6.9235]
[1750769546665,6.9224,144.37,144.35,6.9229]
[1750769546864,6.9224,144.37,144.35,10.37541924]
[1750769547065,6.9227,144.36,144.35,3.45251924]
[1750769548276,2.55895168,144.41,144.33,6.9239]
[1750769548277,3.45251924,144.4,144.33,3.45251924]
[1750769548873,6.9229,144.36,144.33,3.45251924]
[1750769549069,3.45251924,144.4,144.33,3.45251924]
[1750769549272,6.9234,144.35,144.33,3.45251924]
[1750769549870,6.9228,144.36,144.33,3.45251924]
[1750769550875,6.9224,144.37,144.35,3.45251924]
[1750769551377,6.9224,144.37,144.35,10.37541924]
[1750769552180,6.9224,144.37,144.35,3.45251924]
[1750769553680,6.9224,144.37,144.35,10.37561924]
[1750769554371,6.9224,144.37,144.35,3.45251924]
[1750769556180,6.01283124,144.42,144.33,3.45251924]
[1750769556880,2.560312,144.42,144.33,3.45251924]
[1750769557082,6.01283124,144.42,144.35,3.45251924]
[1750769557579,6.9219,144.38,144.35,10.37561924]
[1750769557782,6.9219,144.38,144.35,3.45251924]
[1750769558175,6.9219,144.38,144.35,10.37541924]
[1750769558679,6.9222,144.37,144.35,10.37541924]
[1750769566087,6.9219,144.38,144.36,6.9227]
[1750769566586,40.13107357,144.43,144.35,3.45251924]
[1750769566786,5.71631924,144.45,144.37,3.45251924]
[1750769566978,35.0,144.42,144.39,3.45251924]
[1750769567182,6.9206,144.41,144.39,3.45251924]
[1750769567882,41.92,144.42,144.39,3.45251924]
[1750769568081,35.0,144.42,144.39,3.45251924]
[1750769569191,6.9203,144.41,144.39,10.37351924]
[1750769571489,41.92,144.42,144.4,6.9206]
[1750769571679,6.92,144.42,144.4,6.9206]
[1750769571883,6.9191,144.44,144.41,3.45251924]
[1750769572078,6.9191,144.44,144.41,10.37241924]
[1750769572280,6.9191,144.44,144.41,3.45251924]
[1750769572689,6.9191,144.44,144.42,6.9197]
[1750769572893,6.9194,144.43,144.41,3.45251924]
[1750769573193,35.0,144.45,144.41,3.45251924]
[1750769573796,6.9195,144.43,144.41,3.45251924]
[1750769574295,35.0,144.45,144.41,3.45251924]
[1750769574997,41.9186,144.45,144.42,6.9193]
[1750769575490,635.5341,144.48,144.41,3.45251924]
[1750769575696,6.9195,144.43,144.41,10.37271924]
[1750769576594,6.9195,144.43,144.41,3.45251924]
[1750769578203,6.9195,144.43,144.41,10.37281924]
[1750769578600,6.9199,144.42,144.39,2.2996]
[1750769578897,6.9199,144.42,144.41,3.45251924]
[1750769579098,635.5341,144.48,144.41,3.45251924]
[1750769579301,6.9195,144.43,144.41,3.45251924]
[1750769579599,635.5341,144.48,144.41,3.45251924]
[1750769579798,6.9189,144.44,144.41,3.45251924]
[1750769580400,6.9189,144.44,144.42,6.9195]
[1750769580588,635.5341,144.48,144.42,6.9195]
[1750769580589,6.9184,144.45,144.42,6.9195]
[1750769581190,6.9184,144.45,144.41,3.45251924]
[1750769581499,6.9184,144.45,144.43,6.9193]
[1750769582204,635.5341,144.48,144.4,3.45251924]
[1750769582705,6.92,144.42,144.4,10.37301924]
[1750769583999,6.9195,144.43,144.4,10.37301924]
[1750769584904,6.9195,144.43,144.41,6.9202]
[1750769585110,633.14,144.48,144.42,3.45251924]
[1750769585302,35.0,144.48,144.45,3.45251924]
[1750769586406,6.9178,144.47,144.45,3.45251924]
[1750769586910,6.9179,144.46,144.45,3.45251924]
[1750769588509,35.0,144.48,144.43,3.45251924]
[1750769589208,6.9187,144.45,144.43,3.45251924]
[1750769589710,6.9187,144.45,144.43,10.37151924]
[1750769590810,6.9181,144.46,144.43,10.37151924]
[1750769591013,35.0,144.48,144.43,10.37151924]
[1750769591210,35.0,144.48,144.43,3.45251924]
[1750769591614,6.9186,144.45,144.43,3.45251924]
[1750769592715,35.0,144.48,144.43,10.37171924]
[1750769593902,35.0,144.48,144.43,3.45251924]
[1750769594105,35.0,144.48,144.41,37.4109]
[1750769594106,35.0,144.48,144.45,3.45251924]
[1750769594315,6.9176,144.47,144.45,3.45251924]
[1750769595224,6.9176,144.47,144.45,10.37061924]
[1750769595410,6.917,144.48,144.45,3.45251924]
[1750769596216,6.917,144.48,144.46,6.9176]
[1750769596406,6.9167,144.49,144.46,6.9176]
[1750769597211,6.9172,144.48,144.46,6.9176]
[1750769600426,34.82,144.51,144.45,10.37061924]
[1750769600622,6.9173,144.48,144.45,10.37061924]
[1750769600825,34.82,144.51,144.45,3.45251924]
[1750769601218,6.9177,144.47,144.45,3.45251924]
[1750769601821,6.9171,144.48,144.45,3.45251924]
[1750769602122,34.82,144.51,144.45,3.45251924]
[1750769602318,6.9167,144.49,144.45,3.45251924]
[1750769603026,34.82,144.51,144.46,3.45251924]
[1750769603627,6.9166,144.49,144.47,6.9172]
[1750769603925,6.9166,144.49,144.46,3.45251924]
[1750769604312,6.9173,144.48,144.46,3.45251924]
[1750769604513,34.82,144.51,144.44,3.45251924]
[1750769605127,6.9175,144.47,144.45,6.918]
[1750769605531,34.82,144.51,144.46,3.45251924]
[1750769605725,2.2706,144.53,144.46,3.45251924]
[1750769606032,34.82,144.52,144.46,3.45251924]
[1750769606737,6.9167,144.49,144.47,6.9172]
[1750769606922,34.82,144.52,144.46,3.45251924]
[1750769607229,34.82,144.52,144.46,10.37011924]
[1750769608236,34.82,144.52,144.47,6.9173]
[1750769608924,34.82,144.52,144.46,3.45251924]
[1750769608925,6.9163,144.5,144.46,3.45251924]
[1750769609322,6.9163,144.5,144.47,6.9171]
[1750769609520,34.82,144.52,144.46,3.45251924]
[1750769609725,6.9158,144.51,144.48,3.45251924]
[1750769610144,6.9158,144.51,144.48,10.36921924]
[1750769610626,6.916,144.5,144.48,10.36921924]
[1750769611027,6.916,144.5,144.48,3.45251924]
[1750769611534,34.82,144.52,144.48,3.45251924]
[1750769611735,34.82,144.52,144.45,34.82]
[1750769611945,34.82,144.52,144.46,3.45251924]
[1750769612140,6.917,144.48,144.46,3.45251924]
[1750769612438,34.82,144.52,144.46,3.45251924]
[1750769613528,6.9174,144.47,144.46,3.45251924]
[1750769614138,6.9172,144.48,144.46,3.45251924]
[1750769616040,6.9174,144.47,144.46,3.45251924]
[1750769616535,6.9184,144.45,144.44,3.45251924]
[1750769616936,6.9176,144.47,144.44,3.45251924]
[1750769617338,34.82,144.48,144.44,3.45251924]
[1750769617642,6.9181,144.46,144.44,3.45251924]
[1750769618037,34.82,144.48,144.44,3.45251924]
[1750769618339,37.055,144.51,144.44,3.45251924]
[1750769618542,6.9174,144.47,144.45,6.9182]
[1750769618930,6.9174,144.47,144.44,3.45251924]
[1750769620245,6.9174,144.47,144.44,10.37111924]
[1750769621546,11.07945465,144.5,144.43,6.9192]
[1750769621844,2.58770105,144.49,144.43,6.9192]
[1750769622046,6.9186,144.45,144.42,45.19201924]
[1750769622233,6.03993448,144.48,144.42,34.82]
[1750769622438,34.82,144.47,144.4,5.85181924]
[1750769622638,6.9184,144.45,144.42,6.9197]
[1750769623144,6.9188,144.44,144.42,6.9197]
[1750769624846,6.9195,144.43,144.39,50.04401734]
[1750769625042,34.82,144.47,144.4,3.45251924]
[1750769625650,6.9195,144.43,144.4,6.9205]
[1750769625839,34.82,144.47,144.4,3.45251924]
[1750769626150,34.82,144.47,144.39,37.1196]
[1750769626151,13.0943086,144.46,144.39,3.45251924]
[1750769626448,6.9197,144.43,144.4,6.9204]
[1750769626742,2.58752112,144.46,144.39,3.45251924]
[1750769626945,3.45251924,144.46,144.39,3.45251924]
[1750769627147,5.64461924,144.46,144.39,3.45251924]
[1750769627443,6.9204,144.41,144.39,3.45251924]
[1750769627842,5.64461924,144.46,144.39,3.45251924]
[1750769628045,6.9205,144.41,144.38,6.9214]
[1750769628344,6.9205,144.41,144.38,10.37391924]
[1750769628545,34.78,144.43,144.38,10.37391924]
[1750769629544,6.9205,144.41,144.38,10.37391924]
[1750769631447,6.9205,144.41,144.39,6.9212]
[1750769631947,6.9205,144.41,144.38,10.37391924]
[1750769632848,6.9208,144.4,144.38,3.45251924]
[1750769633355,6.9212,144.39,144.38,3.45251924]
[1750769633552,34.78,144.43,144.36,38.21251924]
[1750769635249,6.9214,144.39,144.36,45.13491924]
[1750769635447,34.78,144.43,144.36,3.45251924]
[1750769635653,6.922,144.38,144.36,3.45251924]
[1750769636742,6.922,144.38,144.36,10.37511924]
[1750769637350,6.9209,144.4,144.36,3.45251924]
[1750769637654,37.0714,144.43,144.36,3.45251924]
[1750769637855,6.9218,144.38,144.36,10.37501924]
[1750769638539,37.0714,144.43,144.34,8.60588188]
[1750769638848,6.9225,144.37,144.34,3.45251924]
[1750769639157,6.9225,144.37,144.34,10.37581924]
[1750769639652,34.78,144.39,144.35,6.9231]
[1750769639849,34.78,144.39,144.34,3.45251924]
[1750769640354,34.78,144.39,144.34,10.37581924]
[1750769640758,6.9224,144.37,144.34,10.37581924]
[1750769641254,6.9227,144.36,144.34,10.37581924]
[1750769641457,34.78,144.39,144.34,3.45251924]
[1750769641953,6.9229,144.36,144.34,3.45251924]
[1750769642158,34.78,144.39,144.34,3.45251924]
[1750769642357,6.9231,144.35,144.34,3.45251924]
[1750769642544,6.9231,144.35,144.32,10.37681924]
[1750769642947,34.78,144.39,144.32,10.37681924]
[1750769642948,6.9239,144.34,144.32,3.45251924]
[1750769643558,6.9239,144.34,144.32,10.37701924]
[1750769644156,6.9234,144.35,144.32,10.37701924]
[1750769645261,6.9237,144.34,144.32,10.37701924]
[1750769645655,34.78,144.39,144.33,6.9241]
[1750769646251,34.78,144.39,144.32,3.45251924]
[1750769646449,37.1995,144.39,144.32,3.45251924]
[1750769646650,6.9239,144.34,144.32,3.45251924]
[1750769646853,3.45251924,144.38,144.3,45.15781924]
[1750769647056,3.45251924,144.38,144.3,38.23251924]
[1750769647276,5.64341924,144.38,144.3,38.23251924]
[1750769647454,6.9248,144.32,144.3,38.23251924]
[1750769647655,6.9248,144.32,144.3,3.45251924]
[1750769648852,6.9245,144.33,144.3,10.37801924]
[1750769649257,6.9245,144.33,144.31,6.9251]
[1750769649467,6.9245,144.33,144.3,3.45251924]
[1750769649764,6.9246,144.32,144.3,3.45251924]
[1750769649966,34.78,144.35,144.3,10.37781924]
[1750769650170,34.78,144.35,144.3,3.45251924]
[1750769650664,6.9237,144.34,144.31,6.9248]
[1750769651264,6.9241,144.33,144.31,6.9248]
[1750769652164,6.9237,144.34,144.32,6.9246]
[1750769652556,6.9237,144.34,144.3,3.45251924]
[1750769653272,6.9241,144.33,144.31,6.9248]
[1750769654659,6.9247,144.32,144.3,10.37791924]
[1750769655667,6.9251,144.31,144.28,10.37861924]
[1750769655864,34.78,144.35,144.28,10.37861924]
[1750769656165,6.9258,144.3,144.28,10.37861924]
[1750769657066,6.9253,144.31,144.28,10.37861924]
[1750769657265,34.78,144.35,144.28,3.45251924]
[1750769657466,34.62,144.35,144.32,3.45251924]
[1750769658354,34.62,144.35,144.3,3.45251924]
[1750769658567,6.9255,144.31,144.28,10.37881924]
[1750769659167,6.9255,144.31,144.29,6.926]
[1750769659671,6.9255,144.31,144.28,3.45251924]
[1750769660069,6.9255,144.31,144.29,6.926]
[1750769662777,34.62,144.35,144.3,3.45251924]
[1750769662961,34.62,144.35,144.32,3.45251924]
[1750769663465,6.9239,144.34,144.32,3.45251924]
[1750769663866,6.9239,144.34,144.32,10.37671924]
[1750769666264,34.62,144.36,144.3,3.45251924]
[1750769666776,6.925,144.32,144.3,3.45251924]
[1750769667465,6.925,144.32,144.3,10.37801924]
[1750769668280,34.62,144.36,144.3,3.45251924]
[1750769668769,6.9237,144.34,144.32,6.9243]
[1750769668964,34.62,144.36,144.32,6.9243]
[1750769669161,34.62,144.36,144.32,10.37681924]
[1750769669666,6.9235,144.35,144.33,6.9241]
[1750769669862,6.9235,144.35,144.32,3.45251924]
[1750769670063,34.62,144.36,144.32,3.45251924]
[1750769670664,6.9239,144.34,144.32,10.37671924]
[1750769672471,6.9233,144.35,144.32,3.45251924]
[1750769672677,34.62,144.36,144.32,3.45251924]
[1750769673478,34.62,144.36,144.32,10.37681924]
[1750769674180,6.9238,144.34,144.32,10.37681924]
[1750769676073,6.9234,144.35,144.33,6.9241]
[1750769676480,6.9236,144.34,144.32,10.37681924]
[1750769678076,6.9233,144.35,144.33,6.9241]
[1750769678580,34.62,144.36,144.32,3.45251924]
[1750769678786,6.9232,144.35,144.32,10.37671924]
[1750769679179,6.9239,144.34,144.32,10.37671924]
[1750769679982,6.9241,144.33,144.32,3.45251924]
[1750769680190,34.62,144.36,144.3,3.45251924]
[1750769680689,6.925,144.32,144.3,3.45251924]
[1750769681288,6.925,144.32,144.3,10.37791924]
[1750769681988,6.9243,144.33,144.31,6.9251]
[1750769682580,6.9243,144.33,144.3,10.37781924]
[1750769683389,6.9243,144.33,144.31,6.9248]
[1750769684496,6.9238,144.34,144.32,6.9246]
[1750769684680,34.62,144.36,144.31,8.60588188]
[1750769684990,6.9238,144.34,144.32,6.9245]
[1750769685292,6.9238,144.34,144.32,10.37701924]
[1750769686194,6.9241,144.33,144.32,3.45251924]
[1750769686887,6.9241,144.33,144.32,12.05840112]
[1750769687087,6.9241,144.33,144.32,8.60588188]
[1750769687293,6.9246,144.32,144.31,12.05840112]
[1750769687692,34.62,144.36,144.31,12.05840112]
[1750769687996,6.9243,144.33,144.31,18.98350112]
[1750769689602,34.62,144.36,144.31,8.60588188]
[1750769690598,34.62,144.36,144.32,12.05840112]
[1750769690901,34.62,144.36,144.32,18.98300112]
[1750769690902,6.9238,144.34,144.32,18.98300112]
[1750769692409,34.62,144.36,144.3,8.60588188]
[1750769692617,34.62,144.36,144.3,12.05840112]
[1750769693010,34.62,144.36,144.32,6.9243]
[1750769693011,6.9239,144.34,144.32,6.9243]
[1750769695618,6.9239,144.34,144.32,15.53018188]
[1750769695821,6.9234,144.35,144.33,6.9241]
[1750769696012,34.62,144.36,144.32,8.60588188]
[1750769696207,34.62,144.36,144.31,12.05879692]
[1750769696407,6.9239,144.34,144.32,6.9243]
[1750769696611,6.9239,144.34,144.32,15.53018188]
[1750769697211,6.9234,144.35,144.33,6.924]
[1750769698026,6.9234,144.35,144.32,15.53018188]
[1750769698315,6.9234,144.35,144.32,8.60588188]
[1750769698509,41.5429,144.36,144.33,8.60588188]
[1750769698710,41.5429,144.36,144.33,15.52988188]
[1750769698914,41.5429,144.36,144.33,18.98279692]
[1750769699110,34.62,144.36,144.33,8.60588188]
[1750769699415,34.62,144.36,144.34,3.45291504]
[1750769699825,34.62,144.36,144.33,18.98172424]
[1750769700123,6.9231,144.35,144.33,18.98172424]
[1750769702517,41.5429,144.36,144.34,6.9236]
[1750769702716,2.4195,144.39,144.35,3.45204236]
[1750769702717,34.68,144.39,144.35,3.45204236]
[1750769703321,6.922,144.38,144.35,10.37474236]
[1750769703523,34.68,144.39,144.35,3.45204236]
[1750769704019,6.9224,144.37,144.35,3.45204236]
[1750769704921,6.9219,144.38,144.35,10.37514236]
[1750769705121,598.24,144.41,144.37,3.45204236]
[1750769705422,34.68,144.4,144.37,3.45204236]
[1750769705623,6.9212,144.39,144.37,3.45204236]
[1750769706522,34.68,144.4,144.37,3.45204236]
[1750769706914,6.9217,144.38,144.37,3.45204236]
[1750769709323,6.9227,144.36,144.35,3.45204236]
[1750769710624,6.9224,144.37,144.35,3.45204236]
[1750769711617,6.9227,144.36,144.35,3.45204236]
[1750769713521,34.68,144.4,144.35,3.45204236]
[1750769714026,34.68,144.4,144.35,10.37494236]
[1750769714329,6.9222,144.37,144.35,10.37494236]
[1750769718024,6.9227,144.36,144.35,3.45204236]
[1750769718632,6.9224,144.37,144.35,3.45204236]
[1750769719228,6.9227,144.36,144.35,3.45204236]
[1750769719432,34.68,144.4,144.33,10.37594236]
[1750769719633,2.56783635,144.39,144.33,10.37594236]
[1750769719836,39.64282202,144.4,144.33,10.37594236]
[1750769720035,34.68,144.4,144.33,10.37594236]
[1750769720830,39.64335743,144.4,144.33,10.37594236]
[1750769721036,34.68,144.4,144.33,10.37594236]
[1750769721226,6.923,144.36,144.33,10.37594236]
[1750769721428,6.923,144.36,144.33,18.9947954]
[1750769721839,6.923,144.36,144.34,6.9235]
[1750769722030,6.923,144.36,144.33,12.0708954]
[1750769722432,6.923,144.36,144.34,6.9234]
[1750769726336,6.9231,144.35,144.33,18.9947954]
[1750769726536,34.68,144.4,144.33,8.61885304]
[1750769726739,2.56545098,144.39,144.32,18.9950954]
[1750769726937,6.9234,144.35,144.32,18.9950954]
[1750769727643,6.9234,144.35,144.33,6.924]
[1750769727845,6.9229,144.36,144.34,3.45204236]
[1750769728045,6.9229,144.36,144.34,10.37554236]
[1750769728246,6.9229,144.36,144.34,3.45204236]
[1750769729739,6.9224,144.37,144.34,3.45204236]
[1750769729938,34.6,144.4,144.36,3.45204236]
[1750769730145,2.56665697,144.39,144.36,3.45204236]
[1750769730348,34.6,144.4,144.36,3.45204236]
[1750769730747,6.9221,144.38,144.36,3.45204236]
[1750769732455,6.9221,144.38,144.36,10.37464236]
[1750769732660,6.9214,144.39,144.36,10.37464236]
[1750769733563,6.9214,144.39,144.36,6.9226]
[1750769734461,34.6,144.4,144.34,18.9942954]
[1750769735055,6.9227,144.36,144.34,18.9942954]
[1750769735459,6.9227,144.36,144.34,12.0708954]
[1750769736161,34.6,144.4,144.34,3.45204236]
[1750769736162,6.9231,144.35,144.34,3.45204236]
[1750769741269,6.9228,144.36,144.34,10.37564236]
[1750769741474,6.9228,144.36,144.34,18.9944954]
[1750769743671,6.9228,144.36,144.34,18.99418611]
[1750769743967,6.9228,144.36,144.34,12.07058611]
[1750769744157,2.56537527,144.39,144.33,8.61885304]
[1750769744365,2.56537527,144.39,144.32,12.07058611]
[1750769744563,2.2139,144.39,144.32,12.07058611]
[1750769745171,6.9234,144.35,144.33,6.9241]
[1750769745371,2.2139,144.39,144.34,3.45173307]
[1750769745568,34.6,144.4,144.34,12.07058611]
[1750769746376,34.6,144.4,144.34,18.99388611]
[1750769747281,34.6,144.4,144.34,12.07058611]
[1750769747476,6.9231,144.36,144.32,12.07058611]
[1750769747672,38.05173307,144.4,144.33,8.61885304]
[1750769748675,6.9234,144.35,144.33,8.61885304]
[1750769750279,34.6,144.4,144.33,8.61885304]
[1750769750481,34.6,144.4,144.34,12.07058611]
[1750769750871,2.3479,144.42,144.36,3.45173307]
[1750769751080,34.54,144.41,144.36,3.45173307]
[1750769751376,6.9215,144.39,144.36,10.37413307]
[1750769751577,6.9215,144.39,144.36,18.99298611]
[1750769751778,6.9215,144.39,144.36,12.07058611]
[1750769752379,6.9215,144.39,144.37,6.9222]
[1750769752578,6.9215,144.39,144.37,15.54105304]
[1750769753380,6.9217,144.38,144.37,8.61885304]
[1750769754583,6.9217,144.38,144.36,12.06943057]
[1750769759885,6.9217,144.38,144.36,18.99203057]
[1750769760587,34.54,144.41,144.36,12.06943057]
[1750769761085,34.54,144.41,144.36,3.45057753]
[1750769761287,6.922,144.38,144.36,10.37317753]
[1750769762091,9.48782039,144.38,144.36,10.37317753]
[1750769762282,6.922,144.38,144.36,10.37317753]
[1750769763582,6.9214,144.39,144.37,6.9222]
[1750769763792,6.9214,144.39,144.38,3.45057753]
[1750769769190,6.921,144.4,144.38,3.45057753]
[1750769769894,6.9212,144.39,144.38,3.45057753]
[1750769770279,6.9212,144.39,144.38,2.20816638]
[1750769777593,6.9222,144.37,144.36,8.61885304]
[1750769777798,2.20816638,144.4,144.36,2.20816638]
[1750769778592,6.9222,144.37,144.36,2.20816638]
[1750769778897,2.20816638,144.4,144.35,2.20816638]
[1750769779598,34.54,144.41,144.37,2.20816638]
[1750769780392,34.54,144.41,144.36,6.9224]
[1750769780699,34.54,144.41,144.37,2.20816638]
[1750769781695,34.54,144.41,144.38,2.20816638]
[1750769782403,6.9217,144.39,144.38,2.20816638]
[1750769782700,34.54,144.41,144.38,2.20816638]
[1750769783200,6.9218,144.38,144.37,2.20816638]
[1750769789918,6.9218,144.38,144.37,2.20865406]
[1750769791824,2.20865406,144.4,144.34,6.9235]
[1750769792030,34.54,144.41,144.37,2.20865406]
[1750769792420,6.9217,144.38,144.37,2.20865406]
[1750769793828,6.9215,144.39,144.37,9.13075406]
[1750769794025,6.9215,144.39,144.38,2.20865406]
[1750769794930,6.9215,144.39,144.37,6.9221]
[1750769795124,6.9215,144.39,144.38,2.20865406]
[1750769796232,6.9215,144.39,144.38,2.20821134]
[1750769800740,6.9215,144.39,144.38,10.8354327]
[1750769801835,34.54,144.41,144.38,10.8354327]
[1750769802038,34.54,144.41,144.4,2.20821134]
[1750769802234,41.4607,144.41,144.4,2.20821134]
[1750769806026,34.54,144.41,144.4,2.20821134]
[1750769807135,41.4603,144.41,144.4,2.20821134]
[1750769808228,34.54,144.41,144.38,2.20821134]
[1750769808627,6.9207,144.4,144.39,2.20821134]
[1750769810541,41.4605,144.41,144.39,2.20821134]
[1750769810740,34.54,144.41,144.4,2.20821134]
[1750769811240,41.4603,144.41,144.4,2.20821134]
[1750769813842,6.9203,144.41,144.4,2.20821134]
[1750769820749,6.9209,144.4,144.38,6.9216]
[1750769820943,6.9209,144.4,144.39,2.20821134]
[1750769821745,6.9217,144.38,144.37,8.63386979]
[1750769821951,6.9217,144.38,144.37,2.20821134]
[1750769824950,6.9214,144.39,144.37,17.76418113]
[1750769825144,24.82938717,194.54,144.38,2.20821134]
[1750769825145,57.41543463,144.47,144.38,2.20821134]
[1750769825351,42.13620212,144.46,144.45,2.20821134]
[1750769825557,34.5,144.46,144.45,2.20821134]
[1750769826140,34.5,144.49,144.45,2.20821134]
[1750769826446,34.5,144.51,144.48,2.20821134]
[1750769826648,2.56523598,144.5,144.49,2.20821134]
[1750769826843,34.5,144.51,144.49,2.20821134]
[1750769827053,34.5,144.51,144.5,2.20821134]
[1750769827757,6.9146,144.53,144.5,2.20821134]
[1750769827957,6.9146,144.53,144.52,2.20821134]
[1750769828951,6.915,144.52,144.51,2.20821134]
[1750769830345,6.915,144.52,144.49,3.44477329]
[1750769830557,34.5,144.54,144.49,3.44477329]
[1750769832057,6.9155,144.51,144.49,3.44477329]
[1750769833361,34.5,144.54,144.45,39.0838]
[1750769833544,34.5,144.54,144.48,3.44477329]
[1750769833750,6.9154,144.52,144.49,6.9161]
[1750769834461,34.5,144.54,144.49,6.9161]
[1750769834462,6.9155,144.51,144.49,6.9161]
[1750769834756,6.9155,144.51,144.48,3.44477329]
[1750769834757,6.9155,144.51,144.48,10.36147329]
[1750769835764,6.916,144.5,144.48,10.36147329]
[1750769837567,6.9157,144.51,144.48,10.36147329]
[1750769837862,34.5,144.54,144.5,3.44477329]
[1750769838064,6.915,144.52,144.51,3.44477329]
[1750769838463,34.5,144.54,144.51,3.44477329]
[1750769838665,6.9148,144.53,144.51,3.44477329]
[1750769839276,41.4143,144.54,144.51,10.35987329]
[1750769839659,34.5,144.54,144.51,3.44477329]
[1750769840066,34.5,144.54,144.52,6.9148]
[1750769840364,6.9138,144.55,144.53,3.44477329]
[1750769841365,6.9138,144.55,144.53,10.35907329]
[1750769842357,6.9138,144.55,144.49,36.8616]
[1750769842358,6.9138,144.55,144.52,6.9148]
[1750769842555,6.9141,144.54,144.52,10.35957329]
[1750769843466,6.9138,144.55,144.52,10.35957329]
[1750769843671,34.48,144.57,144.52,10.35957329]
[1750769844459,34.48,144.57,144.52,3.44477329]
[1750769844664,34.48,144.57,144.51,3.44477329]
[1750769844867,34.48,144.57,144.49,36.8616]
[1750769845166,6.9146,144.53,144.51,3.44477329]
[1750769845368,34.48,144.57,144.5,3.44477329]
[1750769845565,6.9155,144.51,144.5,3.44477329]
[1750769845766,3.44477329,144.56,144.48,10.36137329]
[1750769845767,34.46,144.53,144.48,10.36137329]
[1750769846270,34.46,144.53,144.48,3.44477329]
[1750769846871,6.9163,144.5,144.48,3.44477329]
[1750769847076,34.46,144.53,144.48,3.44477329]
[1750769847268,6.9164,144.49,144.48,3.44477329]
[1750769849467,6.9164,144.49,144.46,6.9176]
[1750769849468,34.46,144.53,144.46,3.44477329]
[1750769849670,3.44477329,144.52,144.44,3.44477329]
[1750769849865,5.74607329,144.52,144.44,3.44477329]
[1750769850067,6.9179,144.46,144.44,10.36357329]
[1750769852376,34.46,144.49,144.44,3.44477329]
[1750769852377,6.9183,144.45,144.44,3.44477329]
[1750769852579,34.46,144.49,144.44,3.44477329]
[1750769852874,6.9181,144.46,144.44,3.44477329]
[1750769853676,6.9183,144.45,144.44,3.44477329]
[1750769853876,34.46,144.49,144.42,10.36437329]
[1750769855083,34.46,144.49,144.43,6.9192]
[1750769856272,34.46,144.49,144.44,6.9188]
[1750769856577,34.46,144.49,144.42,3.44477329]
[1750769856979,6.9182,144.46,144.43,6.9191]
[1750769857280,34.46,144.49,144.43,6.9191]
[1750769857981,34.46,144.49,144.42,10.36427329]
[1750769858681,6.9187,144.45,144.42,10.36427329]
[1750769859674,6.9187,144.45,144.42,6.9195]
[1750769859873,6.9189,144.44,144.42,6.9195]
[1750769860180,6.9189,144.44,144.41,12.74837329]
[1750769862079,6.9189,144.44,144.42,6.9197]
[1750769864289,6.9193,144.43,144.41,12.74837329]
[1750769865095,6.9191,144.44,144.42,6.9198]
[1750769869092,6.9185,144.45,144.43,6.9193]
[1750769869302,34.46,144.49,144.41,14.38339059]
[1750769869590,34.46,144.49,144.43,3.44477329]
[1750769870099,11.07527452,144.48,144.4,8.5550173]
[1750769870393,11.07527452,144.48,144.34,12.00682952]
[1750769870394,3.45181222,144.41,144.34,12.00682952]
[1750769870583,7.8546796,144.48,144.34,3.45181222]
[1750769870584,36.04,144.4,144.34,3.45181222]
[1750769870783,12.02672936,144.46,144.36,3.45181222]
[1750769870784,36.04,144.41,144.36,3.45181222]
[1750769870981,36.04,144.41,144.38,3.45005723]
[1750769871393,36.04,144.41,144.37,3.45005723]
[1750769871590,36.04,144.41,144.36,2.1986]
[1750769871890,36.04,144.41,144.36,5.64865723]
[1750769872592,42.9606,144.41,144.37,6.9221]
[1750769873498,36.04,144.41,144.38,3.45005723]
[1750769874389,36.04,144.41,144.39,6.9212]
[1750769874598,36.04,144.41,144.38,3.45005723]